Cogmind - Beta 16.1 @@@ ROGUE MODE // 2026.04.25 @ 21:29:48 Player: Savant Result: Destroyed by 5V-PL8(R) with Subdweller Beam Cannon Performance ------------- Evolutions (0) 0 Regions Visited (2) 400 Robots Destroyed (37) 185 Value Destroyed (896) 896 Prototype IDs (13) 260 Alien Tech Used (0) 0 Bonus (0) 0 TOTAL SCORE: 1741 Bonus ------- None Cogmind --------- Core Integrity 0/250 Matter 300/300 Energy 142/200 System Corruption 0% Temperature Cool (9) Movement Treading (160) Location -10/Subcaves Parts ------- > --- POWER (1) -------- Subdweller Power Source > --- PROPULSION (2) --- Light Treads Spiked Treads > --- UTILITY (2) ------ Large Storage Unit Seismic Detector > --- WEAPON (2) ------- Subdweller Laser Subdweller Beam Cannon > --- INVENTORY (15) --- Light Nuclear Core Subdweller Monowheel Large Matter Pod (150) High-capacity Matter Pod (200) Core Shielding Rainbow Chip Subdweller Laser Subdweller Machine Gun 1B-0RG's Assimilator Datajack Mining Laser Peak State ------------ > --- POWER ------------ Subdweller Power Source > --- PROPULSION ------- Light Treads Spiked Treads > --- UTILITY ---------- Large Storage Unit Seismic Detector > --- WEAPON ----------- Subdweller Laser Subdweller Beam Cannon > --- INVENTORY -------- Light Nuclear Core Subdweller Monowheel Large Matter Pod High-capacity Matter Pod Core Shielding Rainbow Chip Subdweller Laser Subdweller Machine Gun 1B-0RG's Assimilator Datajack Mining Laser [Rating: 20] Favorites ----------- Power Subdweller Power Source Engine Subdweller Power Source Power Core Light Nuclear Core Propulsion Light Treads Treads Light Treads Utility Large Storage Unit Device Seismic Detector Storage Large Storage Unit Protection Core Shielding Weapon Assault Rifle Energy Gun Subdweller Laser Energy Cannon Subdweller Beam Cannon Ballistic Gun Assault Rifle Special Weapon Mining Laser Build | -11 -10 -10 ------- Run | Yrd Mat Sub Slots Evolved . | . . . Power . | . . . Propulsion . | . . . Utility . | . . . Weapon . | . . . Parts Attached 26 | 7 9 10 Power 3 | 1 1 1 Engine 2 | 1 . 1 Core 1 | . 1 . Reactor . | . . . Propulsion 6 | 2 . 4 Treads 6 | 2 . 4 Leg . | . . . Wheel . | . . . Hover . | . . . Flight . | . . . Utility 6 | 2 4 . Device 3 | 1 2 . Storage 2 | 1 1 . Processor . | . . . Hackware . | . . . Protection 1 | . 1 . Artifact . | . . . Weapon 11 | 2 4 5 Energy Gun 4 | . 2 2 Energy Cannon 1 | . . 1 Ballistic Gun 5 | 2 1 2 Ballistic Cannon . | . . . Launcher . | . . . Special Weapon 1 | . 1 . Impact Weapon . | . . . Slashing Weapon . | . . . Piercing Weapon . | . . . Special Melee Weapon . | . . . Unidentified Prototypes . | . . . Parts Lost 4 | . 1 3 Power . | . . . Propulsion 2 | . . 2 Utility . | . . . Weapon 2 | . 1 1 Highest Loss Streak 2 | . 1 2 To Critical Strikes . | . . . Average Backups 12 | 5 12 13 Power . | . 1 1 Propulsion 2 | 3 4 2 Utility 4 | . 3 5 Weapon 3 | 1 3 3 Tool/Special . | . . . Unused Backups 17 | . 4 13 Power 1 | . . 1 Propulsion 5 | . 2 3 Utility 5 | . 1 4 Weapon 4 | . 1 3 Tool/Special 2 | . . 2 Average Slot Usage (%) 99 | . 100 99 Engine 8 | . 4 12 Core 5 | . 9 1 Treads 27 | . 28 27 Device 12 | . 12 12 Storage 14 | . 14 14 Protection 1 | . 1 1 Energy Gun 11 | . 1 18 Ballistic Gun 15 | . 25 8 Peak Build Rating 20 | 9 12 20 Average Rating 11 | 7 9 14 On Entrance 6 | . 9 10 Avg Prop Armor Cover (%) . | . . . Naked Turns . | . . . Heaviest Build 38 | 15 30 38 Greatest Support 40 | 40 40 40 Greatest Overweight (x) 1 | . . 1 Average Overweight (x) . | . . . Largest Inventory Capacity 15 | 8 15 15 Average Capacity 14 | 7 14 15 Most Carried 15 | 8 15 15 Average Carried 13 | 5 12 14 Final Capacity 15 | 8 15 15 Final Carried 15 | 8 14 15 Class Distribution -------------------- 51% | Scavenger-Mutant 48% | Mutant Dominant Class ---------------- Mutant | -10/Materials Scavenger-Mutant | -10/Subcaves Resources | -11 -10 -10 ----------- Run | Yrd Mat Sub Matter Collected 1645 | 316 614 715 Remotely . | . . . Salvage Created 1411 | 146 776 489 Parts 88 | 17 37 34 Haulers Intercepted 1 | . 1 . Recyclers Shooed 1 | . 1 . Parts Field Recycled . | . . . Retrieved Matter . | . . . Parts Self-Destructed 23 | . . 23 Prevented . | . . . Parts Restored . | . . . Kills | -11 -10 -10 ------- Run | Yrd Mat Sub Combat Hostiles Destroyed 25 | . 13 12 Guns 23 | . 12 11 Cannons 1 | . . 1 AOE 1 | . 1 . Classes Destroyed 9 | 1 6 2 Tunneler 6 | 6 . . Hauler 1 | . 1 . Recycler 3 | . 3 . Operator 1 | . 1 . Watcher 1 | . 1 . Swarmer 6 | . 3 3 Grunt 12 | . 10 2 Sentry 1 | . . 1 Subdweller 6 | . . 6 Best Kill Streak 4 | 3 4 3 Combat Bots Only 4 | . 4 3 Max Kills in Single Turn 1 | 1 1 1 Gunslinging . | . . . Exploded 1 | . 1 . Melee . | . . . Uniques/NPCs Destroyed . | . . . Combat | -11 -10 -10 -------- Run | Yrd Mat Sub Hostile Shots Fired 117 | . 51 66 Missed 28 | . 10 18 Hits 89 | . 41 48 Projectile 89 | . 41 48 Critical Strikes 1 | . 1 . Damage Taken 1298 | . 499 799 Core 263 | . 91 172 Absorbed by Shields . | . . . Redirected to Shielding 25 | . 1 24 Core Remaining (%) 100 | 100 . . Volleys Fired 124 | 9 64 51 Largest 2 | 2 2 2 Hottest 120 | 40 100 120 Shots Fired 225 | 18 122 85 Gun 209 | 18 116 75 Cannon 3 | . . 3 Launcher . | . . . Special 13 | . 6 7 Kinetic 161 | 18 96 47 Thermal 44 | . 6 38 Explosive . | . . . Electromagnetic 20 | . 20 . Robot Hit Streak 11 | 6 11 9 Robot Miss Streak 5 | 2 5 3 Penetration Max . | . . . Secondary Targets 3 | . 1 2 Max Gunslinging Chain 1 | . 1 1 Shots Hit Robots 133 | 10 73 50 Core Hits 61 | 6 34 21 Critical Kills . | . . . Critical Parts Destroyed . | . . . Critical Strikes . | . . . Melee Attacks . | . . . Impact . | . . . Slashing . | . . . Piercing . | . . . Sneak Attacks . | . . . Combat Hostiles . | . . . Follow-up Attacks . | . . . Damage Inflicted 1934 | 124 989 821 Guns 1830 | 124 938 768 Cannons 53 | . . 53 Explosions 51 | . 51 . Melee . | . . . Ramming . | . . . Kinetic 1374 | 124 797 453 Thermal 419 | . 51 368 Explosive . | . . . Electromagnetic 141 | . 141 . Impact . | . . . Slashing . | . . . Piercing . | . . . Highest Corruption . | . . . Average Corruption . | . . . Corruption Purged . | . . . Corruption Blocked . | . . . Overload Shots . | . . . Overflow Damage 27 | . 27 . Projectiles . | . . . Explosions 27 | . 27 . Melee . | . . . Knockbacks . | . . . Impact . | . . . Kinetic . | . . . Secondary . | . . . Self-Inflicted Damage 26 | . 26 . Shots 1 | . 1 . Rammed . | . . . Targets Rammed . | . . . Kicked . | . . . Crushed . | . . . Highest Temperature 120 | . 120 4 Average Temperature 52 | . 55 4 Received Heat Transfer 375 | . 234 141 Siege Activations . | . . . Martial Activations . | . . . Shielding Activations . | . . . Robots Disrupted . | . . . Combat Hostiles . | . . . Robots Corrupted . | . . . Combat Hostiles . | . . . Parts Fried . | . . . Impact Corruptions . | . . . Robots Melted . | . . . Combat Hostiles . | . . . Parts Melted . | . . . Heat Transferred 549 | . 100 449 Parts Sabotaged . | . . . Parts Stolen . | . . . Parts Stripped . | . . . Power Chain Reactions 1 | . 1 . Alert | -11 -10 -10 ------- Run | Yrd Mat Sub Maximum Alert Level . | . . . Low Security (%) 100 | 100 100 . Level 1 . | . . . Level 2 . | . . . Level 3 . | . . . Level 4 . | . . . Level 5 . | . . . High Security . | . . . Max Security . | . . . Peak Influence 145 | 10 145 . Initial . | . . . Average 29 | 1 34 . Influence Increases 675 | 30 440 205 Destroy 0b10 Robot/C 380 | . 260 120 Destroy 0b10 Robot/NC 60 | 30 30 . Destroy Leader 64 | . 54 10 Successful Hack 22 | . 22 . Select Force Hacks 30 | . 30 . Disable Machine 15 | . 15 . Destroy Structure 14 | . 14 . Lose Combat Pursuer 90 | . 15 75 Influence Decreases 675 | 30 299 346 Entered New Map 69 | . . 69 Time Decay 576 | 30 299 247 Lost Part 30 | . . 30 Squads Dispatched 3 | . 3 . Investigation 2 | . 2 . Extermination . | . . . Reinforcement 1 | . 1 . Assault . | . . . Garrison . | . . . Intercept . | . . . Searches Triggered . | . . . Construction Impeded . | . . . Haulers Reinforced . | . . . Active Scanning Responses . | . . . Cargo Convoy Interrupts . | . . . Stealth | -11 -10 -10 --------- Run | Yrd Mat Sub Distress Signals 1 | . 1 . Communications Jammed . | . . . Distress Signals . | . . . Times Spotted 38 | . 22 16 Peak Tracking Total 4 | . 4 4 Tactical Retreats 4 | . 1 3 Traps | -11 -10 -10 ------- Run | Yrd Mat Sub Traps Triggered 3 | . 2 1 Indirectly . | . . . Trap Hack Attempts . | . . . Triggered . | . . . Disarmed . | . . . Reprogrammed . | . . . Reused . | . . . Traps Extracted . | . . . Installed . | . . . Triggered . | . . . Machines | -11 -10 -10 ---------- Run | Yrd Mat Sub Machines Disabled 2 | . 1 1 Max in Single Turn 1 | . 1 1 Machines Repaired . | . . . Machines Dismantled . | . . . Machines Sabotaged . | . . . Overloaded Fab Kills . | . . . Hacking | -11 -10 -10 --------- Run | Yrd Mat Sub Machines Accessed 8 | . 7 1 Terminals 6 | . 6 . Fabricators . | . . . Repair Stations . | . . . Recycling Units 1 | . 1 . Scanalyzers . | . . . Garrison Access . | . . . Total Hacks 20 | . 19 1 Successful 15 | . 14 1 Failed 5 | . 5 . Catastrophic 1 | . 1 . Database Lockouts . | . . . Manual 15 | . 15 . Terminals 18 | . 18 . Fabricators . | . . . Repair Stations . | . . . Recycling Units 1 | . 1 . Scanalyzers . | . . . Garrison Access . | . . . Terminal Hacks 6 | . 5 1 Part Schematic 1 | . 1 . Locate Traps 2 | . 2 . Zone Layout 2 | . 2 . Proto ID Catalog 1 | . . 1 Fabricator Hacks . | . . . Repair Station Hacks . | . . . Recycling Unit Hacks . | . . . Scanalyzer . | . . . Garrison Access Hacks . | . . . Unauthorized Hacks 9 | . 9 . Terminals 8 | . 8 . Botnet 2 | . 2 . Operators 1 | . 1 . Skim 5 | . 5 . Fabricators . | . . . Repair Stations . | . . . Recycling Units 1 | . 1 . Tunnel 1 | . 1 . Scanalyzers . | . . . Garrison Access . | . . . Data Cores Recovered . | . . . Used . | . . . Hacking Detections 4 | . 4 . Full Trace Events . | . . . Feedback Events . | . . . Feedback Blocked . | . . . Robot Schematics Acquired . | . . . Robots Built . | . . . Authchips . | . . . Time . | . . . Total Robot Build Rating . | . . . Part Schematics Acquired 1 | . 1 . Parts Built . | . . . Authchips . | . . . Time . | . . . Total Part Build Rating . | . . . Part Studies Acquired . | . . . Parts Repaired . | . . . Time . | . . . Parts Recycled . | . . . Recycled Matter . | . . . Retrieved Matter . | . . . Retrieved Components . | . . . Parts Scanalyzed . | . . . Part Schematics Acquired . | . . . Parts Damaged . | . . . Bothacking | -11 -10 -10 ------------ Run | Yrd Mat Sub Used RIF Installer . | . . . Robots Hacked . | . . . Non-combat . | . . . Combat . | . . . Robot Hacks Applied . | . . . Relay Couplers Released . | . . . Fabnet Peak Effective % . | . . . Robots Rewired . | . . . Allies Hacked . | . . . Hacks Repelled . | . . . Allies | -11 -10 -10 -------- Run | Yrd Mat Sub Total Allies . | . . . Largest Group . | . . . Highest-Rated Group . | . . . Highest-Rated Ally . | . . . Total Orders . | . . . Ally Attacks . | . . . Total Damage . | . . . Kills . | . . . Allies Corrupted . | . . . Allies Melted . | . . . Intel | -11 -10 -10 ------- Run | Yrd Mat Sub Active Infowar (turns) 3184 | 149 1235 1800 Terrain 356 | 149 207 . Seismic 2828 | . 1028 1800 Robot Analysis Total . | . . . Derelict Logs Recovered 1 | . . 1 Drone Launches . | . . . Drone Recoveries . | . . . Exploration | -11 -10 -10 ------------- Run | Yrd Mat Sub Turns Passed 3660 | 233 1389 2038 Spaces Moved 1758 | 115 614 1029 Core 2 | 2 . . Treads 1756 | 113 614 1029 Legs . | . . . Wheels . | . . . Hover . | . . . Flight . | . . . Fastest Speed 50 | 50 160 160 Average Speed 159 | 158 160 160 Slowest Speed 240 | 160 160 240 Overloaded Moves . | . . . Propulsion Burnouts . | . . . Robots Hopped . | . . . Potential Cave-ins . | . . . Cave-ins Triggered . | . . . Exploration Rate (%) 42 | 5 81 40 Regions Visited 2 Branch Regions 1 Pre-discovered Areas 3 | . 3 . Known Exits Taken 1 | . 1 . Unknown Exits Taken 1 | 1 . . Scrap Searched 7 | . . 7 Spaces Dug 6 | . 6 . Terrain Destroyed 10 | . 10 . Melee . | . . . Projectile 6 | . 6 . AOE 4 | . 4 . Terrain Rammed . | . . . Walls Destroyed . | . . . Machines Disabled . | . . . Actions | -11 -10 -10 --------- Run | Yrd Mat Sub Total 2337 | 145 877 1315 Wait 339 | 6 158 175 Move 1756 | 114 613 1029 Hop . | . . . Pick Up 33 | 9 11 13 Fast Attach 8 | 6 . 2 Attach 4 | 1 1 2 Detach . | . . . Swap 52 | . 25 27 Drop 21 | . 5 16 Fire 124 | 9 64 51 Melee . | . . . Ram . | . . . Kick . | . . . Crush . | . . . Escape Stasis . | . . . Rewire . | . . . Trap . | . . . Miscellaneous . | . . . Route ------- -11/Scrapyard -10/Materials (discovered 5 exits: *Mat x3 / [*Min] / *Sub) -10/Subcaves History --------- Turn | Location | Event 26 | -11/Scrapyard | Discovered new exit (range 16) 234 | -11/Scrapyard | Entered Materials 308 | -10/Materials | Build established: Mutant 832 | -10/Materials | Discovered new exit (range 9) 904 | -10/Materials | Discovered new exit (range 5) 1112 | -10/Materials | Learned location of Subcaves (-10) 1138 | -10/Materials | Identified exit to Materials 1160 | -10/Materials | Identified exit to Subcaves 1161 | -10/Materials | Learned Recycling recycling unit intel 1164 | -10/Materials | Learned location of 2 exits from Materials 1623 | -10/Materials | Entered Subcaves 1624 | -10/Subcaves | Approached by a straggling Scientist 1706 | -10/Subcaves | Core integrity fell below 50% 1723 | -10/Subcaves | A swath of the cavern ceiling suddenly collapsed 2147 | -10/Subcaves | Build established: Scavenger-Mutant 2341 | -10/Subcaves | Core integrity fell below 20% 2523 | -10/Subcaves | Ambushed by Subdwellers from Twisted Machinery 2939 | -10/Subcaves | Visited 4L-MR0's lab 2960 | -10/Subcaves | Found Rainbow Chip 2967 | -10/Subcaves | Found Prototype Special Melee Weapon 3082 | -10/Subcaves | A swath of the cavern ceiling suddenly collapsed 3553 | -10/Subcaves | Disturbed a concealed Subdweller 3601 | -10/Subcaves | Learned Materials emergency access door positions 3658 | -10/Subcaves | Disturbed a concealed Subdweller 3659 | -10/Subcaves | Disturbed a concealed Subdweller 3661 | -10/Subcaves | Destroyed by 5V-PL8(R) with Subdweller Beam Cannon Last Messages --------------- 03629_ Searching scrap... 03629_ Found Battle Rifle. 03629_ Found 52 Matter. 03633_ Searching scrap... 03633_ Found Battle Rifle. 03633_ Found 58 Matter. 03634_ Searching scrap... 03634_ Found Spk. Treads. 03634_ Found 65 Matter. 03641_ Dropped Lgt. Treads. 03642_ Acquired 10 matter. 03647_ Searching scrap... 03647_ Found Hvy. Riot Gun. 03647_ Found 68 Matter. 03656_ Searching scrap... 03656_ Found Shrapnel Trap. 03656_ Found Spk. Treads. 03656_ Found 31 Matter. 03658_ 5V-PL8(R) angrily emerges from the Twisted Machinery. 03659_ CO-LMO(R) angrily emerges from the Twisted Machinery. Map ----- +----------------------------------------------------+ | | | | | | | | | | | | | | | | | | | ?????????????????????????????????????????????????? | | ?????????????????????????????????????????????????? | | ?????????????????????????????????????????????????? | | ?????????????????????????????????????????????????? | | ?????????????????????????????????????????????????? | | ?????????????????????????????????????????????????? | | ?????????????????????????????????????????????????? | | ?????????????????????????????????????????????????? | | ?????????????????????????????????????????????????? | | ?????????????????????????????????????????????????? | | ?????????????????????????????????????????????????? | | ?????????????????????########????????????????????? | | ?????????????????????# ##??????????????????? | | ?????????????????????# #### #??????????????????? | | ?????????????????????# &#<<## ######???????#####?? | | ?????????????????????# %<%&# ##??##### ### | | ?????????????????????# # @%%[% ##?# # | | ???????????????####### #RR=## #?# | | ???????????????# ##<#== ### # ## | | ???????????????## !###[[ " ###### | | ????????????????## ### & [&## """## # #????# | | ?????????????????###?####==[!####""##### ###?## ## | | ????????????????????????## *##??####??## ### # | | ?????????????????????????####???????### ## # | | ????????????????????????????????????# ## | | ???????????????????????????????????## | | ???????????????????????????????????# | | ???????????????????????????????????# ## | | ???????????????????????????????????# ## | | ???????????????????????????????????# #### ##? | | ???????????????????????????????????# ##??####?? | | ???????????????????????????????????##"###????????? | | ????????????????????????????????????##???????????? | | ?????????????????????????????????????????????????? | | ?????????????????????????????????????????????????? | | ?????????????????????????????????????????????????? | | ?????????????????????????????????????????????????? | | ?????????????????????????????????????????????????? | | ?????????????????????????????????????????????????? | | ?????????????????????????????????????????????????? | | ?????????????????????????????????????????????????? | +----------------------------------------------------+ Best States ------------- Heat Dissipation 39 Energy Generation 14 Energy Capacity 250 Matter Stores 300 Matter Capacity 300 Sight Range 16 Terrain Scan Range 16 Terrain Scan Density 10 Core Shielding 20 Evasion (%) 40 Recoil Reduction 2 Item Schematics ----------------- Huge Storage Unit | -10/Materials | Hacked Robot Schematics ------------------ None Fabricated ------------ Nothing Repaired ---------- Nothing Studied --------- None Alien Tech Used ----------------- None Achievements -------------- None Challenges ------------ None Game ------ Seed FortressActuatorInterface Manual? 0 Play Time 00:42:42 Cumulative 1170.3 hours Start 2026.04.25 @ 20:42:31 End 2026.04.25 @ 21:29:48 Sessions 1 Manual Loads 0 Difficulty Rogue Special Mode None Game No. 210 Rogue 210 Adventurer 0 Explorer 0 Win Type - Total 71 Types 27/9/11/1/3/1/10/4/3/2 Lore% 95 Gallery% 92 Achievement% 87 Wizard Run 0 Options --------- Layout 0 ASCII 0 Keyboard 0 Movement Numpad Keybinds 0 Fullscreen 1 Font 18/SmallcapsGlow Map View 76x50 Zoom Use 0% Tactical HUD 1 Map Filters NONE Filters NONE Steam 1 RUN: b32e8116-7008-4ff8-8452-736d782b0e46